Workbook

Sheet паспорт11,8
A1: ПАТ "УКРТРАНСГАЗ" | G1: ПАСПОРТ ФІЗИКО-ХІМІЧНИХ ПОКАЗНИКІВ ПРИРОДНОГО ГАЗУ № 11
A2: Філія "УМГ "Київтрансгаз" | G2: переданого Красилівським ЛВУМГ та прийнятого ПАТ "Хмельницькгаз" та прямими споживачами: АГНКС ПП АвтоГаз Красилів, АГНКС -1 Хмельницький,АГНКС ТОВ ТД "Сан Ойл", "Мотор Січ" м. Волочиськ
A3: Красилівське ЛВУМГ | G3: Маршрут № 11
A4: Вимірювальна хіміко-аналітична лабораторія
A5: Свідоцтво № 27"Ч"-17 чинно до 10.02.2020 р. | K5: по газопроводу КЗУ -1, ДК, ДКр | V5: за період з | X5: 2017-08-01 | Z5: по | AA5: 2017-08-31
A7: Число місяця | B7: Компонентний склад, % мол. | N7: Фізико-хімічні показники газу обчислені на основі компонентного складу, 101,325 кПа | X7: Температура точки роси за вологою (Р = 3.92 МПа), °С | Y7: Температура точки роси за вуглеводнями, °С | Z7: Вміст сірководню, г/м3 | AA7: Вміст меркаптанової сірки, г/м3 | AB7: Вміст механічних домішок, г/м3
N8: Густина абсолютна, кг/м3,при 20 °С, | O8: Температура вимірювання/згоряння при 20/25°С
B9: метан, С1 | C9: етан, С2 | D9: пропан, С3 | E9: ізо-бутан, і-С4 | F9: н-бутан, н-С4 | G9: нео-пентан, нео-С5 | H9: ізо-пентан, і-С5 | I9: н-пентан, н-С5 | J9: гексани та вищі, С6+ | K9: кисень, О2 | L9: азот, N2 | M9: діоксид вуглецю, CО2 | O9: Теплота згоряння нижча | R9: Теплота згоряння вища | U9: Число Воббе вище
O10: ккал/м³ | P10: МДж/м³ | Q10: кВт⋅год/м³ | R10: ккал/м³ | S10: МДж/м³ | T10: кВт⋅год/м³ | U10: ккал/м³ | V10: МДж/м³ | W10: кВт⋅год/м³
A11: 1 | O11: =P11*238.8459 -> 8269 | P11: 34.62 | Q11: =P11/3.6 -> 9.62 | R11: =S11*238.8459 -> 9155 | S11: 38.33 | T11: =S11/3.6 -> 10.65 | W11: =V11/3.6 -> 0 | AC11: =SUM(B11:M11)+$K$42+$N$42 -> 0
A12: 2 | O12: 8269 | P12: 34.62 | Q12: =P12/3.6 -> 9.62 | R12: 9155 | S12: 38.33 | T12: =S12/3.6 -> 10.65 | W12: =V12/3.6 -> 0 | AC12: 0
A13: 3 | O13: 8269 | P13: 34.62 | Q13: =P13/3.6 -> 9.62 | R13: 9155 | S13: 38.33 | T13: =S13/3.6 -> 10.65 | W13: =V13/3.6 -> 0 | AC13: 0 | AD13: =IF(AC13=100,"ОК"," ") -> 
A14: 4 | O14: 8269 | P14: 34.62 | Q14: 9.62 | R14: 9155 | S14: 38.33 | T14: 10.65 | W14: =V14/3.6 -> 0 | AC14: 0 | AD14: =IF(AC14=100,"ОК"," ") -> 
A15: 5 | O15: 8269 | P15: 34.62 | Q15: 9.62 | R15: 9155 | S15: 38.33 | T15: 10.65 | W15: 0 | AC15: 0
A16: 6 | O16: 8269 | P16: 34.62 | Q16: 9.62 | R16: 9155 | S16: 38.33 | T16: 10.65 | W16: =V16/3.6 -> 0 | AC16: 0
A17: 7 | B17: 89.513 | C17: 4.9786 | D17: 1.2425 | E17: 0.1357 | F17: 0.2264 | G17: 0.0045 | H17: 0.0577 | I17: 0.0539 | J17: 0.1027 | K17: 0.007 | L17: 1.7165 | M17: 1.9624 | N17: 0.7556 | O17: 8283 | P17: 34.68 | Q17: 9.63 | R17: 9174 | S17: 38.41 | T17: 10.67 | U17: 11582 | V17: 48.49 | W17: =V17/3.6 -> 13.47 | X17: -3.6 | Y17: -2.7 | AC17: 100.001
A18: 8 | O18: 8283 | P18: 34.68 | Q18: 9.63 | R18: 9174 | S18: 38.41 | T18: 10.67 | W18: =V18/3.6 -> 0 | AC18: 0
A19: 9 | O19: 8283 | P19: 34.68 | Q19: 9.63 | R19: 9174 | S19: 38.41 | T19: 10.67 | W19: =V19/3.6 -> 0 | AB19: 0.0008 | AC19: 0
A20: 10 | O20: 8283 | P20: 34.68 | Q20: 9.63 | R20: 9174 | S20: 38.41 | T20: 10.67 | W20: =V20/3.6 -> 0 | AC20: 0
A21: 11 | O21: 8283 | P21: 34.68 | Q21: 9.63 | R21: 9174 | S21: 38.41 | T21: 10.67 | W21: =V21/3.6 -> 0 | AC21: 0
A22: 12 | O22: 8283 | P22: 34.68 | Q22: 9.63 | R22: 9174 | S22: 38.41 | T22: 10.67 | W22: 0 | AC22: 0
A23: 13 | O23: 8283 | P23: 34.68 | Q23: 9.63 | R23: 9174 | S23: 38.41 | T23: 10.67 | W23: =V23/3.6 -> 0 | AC23: 0
A24: 14 | B24: 89.5889 | C24: 4.9485 | D24: 1.203 | E24: 0.1309 | F24: 0.2154 | G24: 0.0045 | H24: 0.055 | I24: 0.0492 | J24: 0.0949 | K24: 0.0081 | L24: 1.7628 | M24: 1.9387 | N24: 0.7543 | O24: 8269 | P24: 34.62 | Q24: 9.62 | R24: 9157 | S24: 38.34 | T24: 10.65 | U24: 11571 | V24: 48.44 | W24: =V24/3.6 -> 13.46 | X24: -5.8 | Y24: -6 | AC24: 100 | AD24: ОК
A25: 15 | O25: 8269 | P25: 34.62 | Q25: 9.62 | R25: 9157 | S25: 38.34 | T25: 10.65 | W25: 0 | AC25: 0
A26: 16 | O26: 8269 | P26: 34.62 | Q26: 9.62 | R26: 9157 | S26: 38.34 | T26: 10.65 | W26: =V26/3.6 -> 0 | Z26: 0.0002 | AA26: 0.0006 | AC26: 0
A27: 17 | O27: 8269 | P27: 34.62 | Q27: 9.62 | R27: 9157 | S27: 38.34 | T27: 10.65 | W27: =V27/3.6 -> 0 | AC27: 0
A28: 18 | O28: 8269 | P28: 34.62 | Q28: 9.62 | R28: 9157 | S28: 38.34 | T28: 10.65 | V28: 0 | W28: 0 | AC28: 0
A29: 19 | O29: 8269 | P29: 34.62 | Q29: 9.62 | R29: 9157 | S29: 38.34 | T29: 10.65 | W29: 0 | AC29: 0
A30: 20 | O30: 8269 | P30: 34.62 | Q30: 9.62 | R30: 9157 | S30: 38.34 | T30: 10.65 | W30: =V30/3.6 -> 0 | AC30: 0 | AD30: =IF(AC30=100,"ОК"," ") -> 
A31: 21 | B31: 89.7482 | C31: 4.8295 | D31: 1.2256 | E31: 0.1373 | F31: 0.2287 | G31: 0.0047 | H31: 0.0608 | I31: 0.0573 | J31: 0.1219 | K31: 0.0071 | L31: 1.8204 | M31: 1.7584 | N31: 0.7535 | O31: 8288 | P31: 34.7 | Q31: 9.64 | R31: 9179 | S31: 38.43 | T31: 10.68 | U31: 11605 | V31: 48.59 | W31: =V31/3.6 -> 13.5 | X31: -4.4 | Y31: -4.9 | AC31: 100 | AD31: ОК
A32: 22 | O32: 8288 | P32: 34.7 | Q32: 9.64 | R32: 9179 | S32: 38.43 | T32: 10.68 | W32: 0 | AB32: 0.0008 | AC32: 0
A33: 23 | O33: 8288 | P33: 34.7 | Q33: 9.64 | R33: 9179 | S33: 38.43 | T33: 10.68 | W33: 0 | AC33: 0 | AD33: =IF(AC33=100,"ОК"," ") -> 
A34: 24 | O34: 8288 | P34: 34.7 | Q34: 9.64 | R34: 9179 | S34: 38.43 | T34: 10.68 | W34: 0 | AC34: 0
A35: 25 | O35: 8288 | P35: 34.7 | Q35: 9.64 | R35: 9179 | S35: 38.43 | T35: 10.68 | W35: 0 | AC35: 0
A36: 26 | O36: 8288 | P36: 34.7 | Q36: 9.64 | R36: 9179 | S36: 38.43 | T36: =S36/3.6 -> 10.68 | W36: 0 | AC36: 0
A37: 27 | O37: 8288 | P37: 34.7 | Q37: 9.64 | R37: 9179 | S37: 38.43 | T37: 10.68 | W37: =V37/3.6 -> 0 | AC37: 0
A38: 28 | B38: 89.5678 | C38: 5.0011 | D38: 1.1867 | E38: 0.1261 | F38: 0.2047 | G38: 0.0044 | H38: 0.0527 | I38: 0.0472 | J38: 0.0834 | K38: 0.0066 | L38: 1.7413 | M38: 1.978 | N38: 0.754 | O38: 8262 | P38: 34.59 | Q38: 9.61 | R38: 9148 | S38: 38.3 | T38: 10.64 | U38: 11562 | V38: 48.41 | W38: =V38/3.6 -> 13.45 | X38: -5.1 | Y38: -5.4 | AC38: 100 | AD38: ОК
A39: 29 | O39: 8262 | P39: 34.59 | Q39: =P39/3.6 -> 9.61 | R39: 9148 | S39: 38.3 | T39: =S39/3.6 -> 10.64 | W39: 0 | Z39: 0.0002 | AA39: 0.0006 | AC39: 0
A40: 30 | O40: 8262 | P40: 34.59 | Q40: =P40/3.6 -> 9.61 | R40: 9148 | S40: 38.3 | T40: =S40/3.6 -> 10.64 | W40: 0 | AC40: 0
A41: 31 | O41: 8262 | P41: 34.59 | Q41: =P41/3.6 -> 9.61 | R41: 9148 | S41: 38.3 | T41: =S41/3.6 -> 10.64 | W41: 0 | AC41: 0
A42: Вміст одоранта при одоризації становить 16 г на 1 000 м³ газу | O42: =SUMPRODUCT(O11:O41,' розрахунок11,8'!AQ7:AQ37)/' розрахунок11,8'!AQ38 -> 8276 | P42: =SUMPRODUCT(P11:P41,' розрахунок11,8'!AQ7:AQ37)/' розрахунок11,8'!AQ38 -> 34.65 | Q42: =SUMPRODUCT(Q11:Q41,' розрахунок11,8'!AQ7:AQ37)/' розрахунок11,8'!AQ38 -> 9.63 | R42: 9165 | S42: =SUMPRODUCT(S11:S41,' розрахунок11,8'!AQ7:AQ37)/' розрахунок11,8'!AQ38 -> 38.37 | T42: =SUMPRODUCT(T11:T41,' розрахунок11,8'!AQ7:AQ37)/' розрахунок11,8'!AQ38 -> 10.66
H43: Середньозважене значення теплоти згоряння:
B46: В.о.начальника управління Красилівського ЛВУМГ Семенюк П.В.
C47: Підрозділу підприємства, якому підпорядкована лабораторія | O47: прізвище | R47: підпис | V47: дата
B48: Завідувач лабораторією Пілецька С.А.
C49: Лабораторія, де здійснювалось вимірювання газу | O49: прізвище | R49: підпис | V49: дата
B50: Начальник служби метрології Мягкий С.В.
C51: Підрозділу, відповідального за облік газу за маршрутом | O51: прізвище | R51: підпис | V51: дата

Sheet розрахунок11,8
A2: Додаток до Паспорту фізико-хімічних показників природного газу по маршруту № 11
A4: Число місяця | B4: Теплота згоряння вища, МДж/м3 | C4: Хмельницька область | AQ4: Загальний обсяг газу, м3
C5: Обсяг газу переданого за добу, м3
C6: ГРС Красилів (місто) | D6: ГРС Красилів (цукр. завод) | E6: АГНКС ПП АвтоГаз Красилів | F6: ГРС Печеськи | G6: ГРС Закриниччя | H6: ГРС Чепелівка | I6: ГРС Чернелівка | J6: ГРС Заслучне | K6: ГРС Яворівці | L6: ГРС Пашутенці | M6: ГРС Митинці | N6: ГРС Хмельницький -1(Лісові Грінівці | O6: АГНКС-1 Хмельницький | P6: ГРС Везденьки | Q6: ГРС Черепова | R6: ГРС Грузевиця | S6: ГРС Хмельницький-2(Шаровечка) | T6: ГРС Малиничі | U6: АГНКС ТОВ ТД " Сан Ойл" | V6: ГРС Хмельницький3(Нижні Вовківці) | W6: ГРС Скарженці | X6: ГРС Сутківці | Y6: ГРС Глушківці | Z6: ГРС Мицівці | AA6: ГРС Дунаївці | AB6: ГРС Маків | AC6: ГРС Кам.Подільська №1 (місто) | AD6: ГРС Кам.Подільська №1 (цем. з-д) | AE6: ГРС Кам.Подільська №2 (ТЕЦ) | AF6: ГРС Шмирки | AG6: ГРС Купіль | AH6: ГРС Базалія | AI6: ГРС Теофіполь | AJ6: ГРС Заруддя | AK6: ГРС Ямпіль | AL6: ГРС Білогір'я | AM6: ГРС Денисівка | AN6: ГРС Гарнишівка | AO6: ГРС Волочиськ | AP6: машзавод "Мотор Січ"
A7: 1 | B7: 38.33 | C7: 9081 | D7: 0 | E7: 497 | F7: 1797 | G7: 320 | H7: 608 | I7: 366 | J7: 898 | K7: 386 | L7: 1304 | M7: 377 | N7: 154327 | O7: 457 | P7: 411 | Q7: 1909 | R7: 2995 | S7: 0 | T7: 2845 | U7: 1036 | V7: 0 | W7: 6459 | X7: 626 | Y7: 612 | Z7: 5260 | AA7: 11748 | AB7: 2491 | AC7: 22346 | AD7: 44839 | AE7: 0 | AF7: 767 | AG7: 1074 | AH7: 4227 | AI7: 6110 | AJ7: 2361 | AK7: 1848 | AL7: 2433 | AM7: 1122 | AN7: 2745 | AO7: 3195 | AP7: 1724 | AQ7: =SUM(C7:AP7) -> 301601
A8: 2 | B8: 38.33 | C8: 8581 | D8: 0 | E8: 740 | F8: 1992 | G8: 281 | H8: 587 | I8: 331 | J8: 860 | K8: 352 | L8: 1198 | M8: 341 | N8: 151196 | O8: 765 | P8: 397 | Q8: 1544 | R8: 2870 | S8: 0 | T8: 2586 | U8: 1238 | V8: 0 | W8: 4518 | X8: 2907 | Y8: 682 | Z8: 4994 | AA8: 9787 | AB8: 2269 | AC8: 21334 | AD8: 44239 | AE8: 0 | AF8: 767 | AG8: 1044 | AH8: 2293 | AI8: 5649 | AJ8: 2156 | AK8: 1403 | AL8: 2330 | AM8: 1182 | AN8: 2712 | AO8: 3012 | AP8: 1658 | AQ8: 290795
A9: 3 | B9: 38.33 | C9: 9689 | D9: 0 | E9: 664 | F9: 1681 | G9: 327 | H9: 610 | I9: 366 | J9: 861 | K9: 382 | L9: 1382 | M9: 360 | N9: 145755 | O9: 434 | P9: 427 | Q9: 1564 | R9: 2917 | S9: 0 | T9: 2614 | U9: 1186 | V9: 0 | W9: 2363 | X9: 4643 | Y9: 157 | Z9: 3791 | AA9: 10494 | AB9: 2403 | AC9: 22313 | AD9: 31071 | AE9: 0 | AF9: 760 | AG9: 1024 | AH9: 3784 | AI9: 5194 | AJ9: 2452 | AK9: 4319 | AL9: 2645 | AM9: 861 | AN9: 2509 | AO9: 7749 | AP9: 2511 | AQ9: 282262
A10: 4 | B10: 38.33 | C10: 8832 | D10: 0 | E10: 606 | F10: 1594 | G10: 275 | H10: 563 | I10: 339 | J10: 859 | K10: 340 | L10: 1332 | M10: 362 | N10: 138301 | O10: 366 | P10: 406 | Q10: 2853 | R10: 2762 | S10: 0 | T10: 2437 | U10: 1152 | V10: 0 | W10: 2272 | X10: 4427 | Y10: 910 | Z10: 6491 | AA10: 10694 | AB10: 2416 | AC10: 24434 | AD10: 16003 | AE10: 0 | AF10: 748 | AG10: 1029 | AH10: 2309 | AI10: 5062 | AJ10: 2470 | AK10: 3694 | AL10: 2991 | AM10: 879 | AN10: 2460 | AO10: 43398 | AP10: 6283 | AQ10: 302349
A11: 5 | B11: 38.33 | C11: 8427 | D11: 0 | E11: 526 | F11: 1910 | G11: 315 | H11: 663 | I11: 402 | J11: 963 | K11: 433 | L11: 1455 | M11: 401 | N11: 136632 | O11: 282 | P11: 478 | Q11: 2413 | R11: 3037 | S11: 0 | T11: 2895 | U11: 1411 | V11: 0 | W11: 2465 | X11: 4646 | Y11: 678 | Z11: 5846 | AA11: 9720 | AB11: 2518 | AC11: 23951 | AD11: 11012 | AE11: 0 | AF11: 852 | AG11: 1138 | AH11: 4445 | AI11: 5533 | AJ11: 2358 | AK11: 1233 | AL11: 2370 | AM11: 940 | AN11: 2680 | AO11: 11860 | AP11: 0 | AQ11: 256888
A12: 6 | B12: 38.33 | C12: 8733 | D12: 0 | E12: 518 | F12: 1671 | G12: 313 | H12: 608 | I12: 353 | J12: 908 | K12: 346 | L12: 1362 | M12: 351 | N12: 138655 | O12: 236 | P12: 434 | Q12: 1947 | R12: 2919 | S12: 0 | T12: 2700 | U12: 803 | V12: 0 | W12: 2452 | X12: 4579 | Y12: 584 | Z12: 4037 | AA12: 9685 | AB12: 1701 | AC12: 24562 | AD12: 9606 | AE12: 0 | AF12: 816 | AG12: 1015 | AH12: 2003 | AI12: 5097 | AJ12: 1527 | AK12: 2320 | AL12: 2699 | AM12: 894 | AN12: 2436 | AO12: 11390 | AP12: 1182 | AQ12: 251442
A13: 7 | B13: 38.41 | C13: 9200 | D13: 0 | E13: 996 | F13: 1757 | G13: 319 | H13: 607 | I13: 360 | J13: 924 | K13: 412 | L13: 1453 | M13: 398 | N13: 153942 | O13: 301 | P13: 439 | Q13: 1476 | R13: 3170 | S13: 0 | T13: 2798 | U13: 1269 | V13: 0 | W13: 2230 | X13: 5087 | Y13: 619 | Z13: 4062 | AA13: 11608 | AB13: 2713 | AC13: 29453 | AD13: 15347 | AE13: 0 | AF13: 857 | AG13: 1110 | AH13: 3919 | AI13: 5811 | AJ13: 1216 | AK13: 6417 | AL13: 2641 | AM13: 956 | AN13: 4626 | AO13: 11761 | AP13: 5495 | AQ13: 295749
A14: 8 | B14: 38.41 | C14: 9240 | D14: 0 | E14: 715 | F14: 1886 | G14: 360 | H14: 668 | I14: 394 | J14: 1040 | K14: 429 | L14: 1465 | M14: 430 | N14: 156229 | O14: 642 | P14: 489 | Q14: 1922 | R14: 3035 | S14: 0 | T14: 2843 | U14: 1329 | V14: 0 | W14: 2302 | X14: 4994 | Y14: 634 | Z14: 4492 | AA14: 11951 | AB14: 2785 | AC14: 37369 | AD14: 18528 | AE14: 0 | AF14: 947 | AG14: 1199 | AH14: 4549 | AI14: 5806 | AJ14: 2147 | AK14: 4287 | AL14: 2579 | AM14: 965 | AN14: 3485 | AO14: 12768 | AP14: 7127 | AQ14: 312030
A15: 9 | B15: 38.41 | C15: 8549 | D15: 0 | E15: 729 | F15: 1910 | G15: 345 | H15: 606 | I15: 342 | J15: 890 | K15: 364 | L15: 1422 | M15: 398 | N15: 158269 | O15: 445 | P15: 426 | Q15: 2445 | R15: 2900 | S15: 0 | T15: 2721 | U15: 1637 | V15: 0 | W15: 1944 | X15: 4945 | Y15: 581 | Z15: 3828 | AA15: 11152 | AB15: 2330 | AC15: 36918 | AD15: 20076 | AE15: 0 | AF15: 819 | AG15: 1115 | AH15: 2751 | AI15: 5556 | AJ15: 1566 | AK15: 3869 | AL15: 3967 | AM15: 952 | AN15: 7460 | AO15: 11899 | AP15: 4716 | AQ15: 310842
A16: 10 | B16: 38.41 | C16: 10351 | D16: 0 | E16: 545 | F16: 1961 | G16: 302 | H16: 649 | I16: 374 | J16: 902 | K16: 366 | L16: 1380 | M16: 402 | N16: 155142 | O16: 470 | P16: 409 | Q16: 2237 | R16: 2790 | S16: 0 | T16: 2617 | U16: 1321 | V16: 0 | W16: 4402 | X16: 3512 | Y16: 562 | Z16: 3975 | AA16: 11702 | AB16: 2779 | AC16: 37967 | AD16: 27634 | AE16: 0 | AF16: 880 | AG16: 1118 | AH16: 2239 | AI16: 5464 | AJ16: 1536 | AK16: 5060 | AL16: 4047 | AM16: 976 | AN16: 7857 | AO16: 13976 | AP16: 4834 | AQ16: 322738
A17: 11 | B17: 38.41 | C17: 9466 | D17: 0 | E17: 750 | F17: 1833 | G17: 289 | H17: 579 | I17: 368 | J17: 908 | K17: 388 | L17: 1389 | M17: 388 | N17: 141854 | O17: 184 | P17: 450 | Q17: 1601 | R17: 2913 | S17: 0 | T17: 2540 | U17: 1359 | V17: 0 | W17: 1051 | X17: 7136 | Y17: 611 | Z17: 4177 | AA17: 11772 | AB17: 2530 | AC17: 37686 | AD17: 22749 | AE17: 0 | AF17: 833 | AG17: 1056 | AH17: 3935 | AI17: 5622 | AJ17: 1997 | AK17: 5509 | AL17: 3080 | AM17: 922 | AN17: 6384 | AO17: 13065 | AP17: 5035 | AQ17: 302409
A18: 12 | B18: 38.41 | C18: 9708 | D18: 0 | E18: 558 | F18: 1829 | G18: 337 | H18: 607 | I18: 390 | J18: 959 | K18: 430 | L18: 1581 | M18: 439 | N18: 140614 | O18: 240 | P18: 445 | Q18: 1443 | R18: 3165 | S18: 0 | T18: 2888 | U18: 925 | V18: 0 | W18: 1020 | X18: 7808 | Y18: 672 | Z18: 4441 | AA18: 10358 | AB18: 2748 | AC18: 35944 | AD18: 24101 | AE18: 0 | AF18: 917 | AG18: 1188 | AH18: 2586 | AI18: 6947 | AJ18: 1838 | AK18: 1638 | AL18: 3682 | AM18: 1032 | AN18: 3221 | AO18: 12502 | AP18: 911 | AQ18: 290112
A19: 13 | B19: 38.41 | C19: 8621 | D19: 0 | E19: 428 | F19: 1789 | G19: 320 | H19: 624 | I19: 402 | J19: 1005 | K19: 403 | L19: 1532 | M19: 430 | N19: 143041 | O19: 256 | P19: 495 | Q19: 1465 | R19: 3208 | S19: 0 | T19: 2846 | U19: 1178 | V19: 0 | W19: 485 | X19: 8500 | Y19: 738 | Z19: 4217 | AA19: 10579 | AB19: 1711 | AC19: 37758 | AD19: 26935 | AE19: 0 | AF19: 971 | AG19: 1152 | AH19: 2245 | AI19: 6563 | AJ19: 1756 | AK19: 1245 | AL19: 2746 | AM19: 1036 | AN19: 4966 | AO19: 14058 | AP19: 923 | AQ19: 296627
A20: 14 | B20: 38.34 | C20: 8823 | D20: 0 | E20: 914 | F20: 1879 | G20: 295 | H20: 552 | I20: 325 | J20: 869 | K20: 316 | L20: 1385 | M20: 350 | N20: 148893 | O20: 442 | P20: 366 | Q20: 1536 | R20: 2945 | S20: 0 | T20: 2957 | U20: 1375 | V20: 0 | W20: 1670 | X20: 5253 | Y20: 627 | Z20: 4048 | AA20: 10333 | AB20: 2594 | AC20: 34792 | AD20: 27913 | AE20: 0 | AF20: 886 | AG20: 1145 | AH20: 4635 | AI20: 5558 | AJ20: 2179 | AK20: 2111 | AL20: 2357 | AM20: 907 | AN20: 3585 | AO20: 12162 | AP20: 4972 | AQ20: 301949
A21: 15 | B21: 38.34 | C21: 9373 | D21: 0 | E21: 761 | F21: 1686 | G21: 335 | H21: 600 | I21: 374 | J21: 950 | K21: 444 | L21: 1375 | M21: 379 | N21: 157614 | O21: 367 | P21: 378 | Q21: 1413 | R21: 2954 | S21: 0 | T21: 2651 | U21: 1667 | V21: 0 | W21: 2060 | X21: 4554 | Y21: 582 | Z21: 4346 | AA21: 11209 | AB21: 2980 | AC21: 34961 | AD21: 25642 | AE21: 0 | AF21: 864 | AG21: 1113 | AH21: 5238 | AI21: 5846 | AJ21: 3068 | AK21: 2861 | AL21: 2673 | AM21: 1031 | AN21: 2724 | AO21: 12418 | AP21: 4863 | AQ21: 312354
A22: 16 | B22: 38.34 | C22: 10273 | D22: 0 | E22: 752 | F22: 1820 | G22: 330 | H22: 632 | I22: 334 | J22: 897 | K22: 385 | L22: 1440 | M22: 378 | N22: 151461 | O22: 444 | P22: 445 | Q22: 1312 | R22: 2900 | S22: 0 | T22: 2683 | U22: 1384 | V22: 0 | W22: 2187 | X22: 4581 | Y22: 607 | Z22: 4270 | AA22: 11563 | AB22: 2877 | AC22: 37872 | AD22: 43825 | AE22: 0 | AF22: 876 | AG22: 1079 | AH22: 5100 | AI22: 5928 | AJ22: 2349 | AK22: 2221 | AL22: 2511 | AM22: 988 | AN22: 3086 | AO22: 12635 | AP22: 4876 | AQ22: 327301
A23: 17 | B23: 38.34 | C23: 9391 | D23: 0 | E23: 636 | F23: 2114 | G23: 352 | H23: 626 | I23: 391 | J23: 956 | K23: 393 | L23: 1735 | M23: 403 | N23: 157997 | O23: 215 | P23: 419 | Q23: 1420 | R23: 2992 | S23: 0 | T23: 2775 | U23: 1301 | V23: 0 | W23: 2289 | X23: 4923 | Y23: 575 | Z23: 4197 | AA23: 11117 | AB23: 2980 | AC23: 35665 | AD23: 44617 | AE23: 0 | AF23: 975 | AG23: 1200 | AH23: 4315 | AI23: 5458 | AJ23: 2060 | AK23: 2899 | AL23: 2498 | AM23: 884 | AN23: 3091 | AO23: 13437 | AP23: 4214 | AQ23: 331510
A24: 18 | B24: 38.34 | C24: 9371 | D24: 0 | E24: 632 | F24: 1908 | G24: 359 | H24: 703 | I24: 439 | J24: 1033 | K24: 444 | L24: 1534 | M24: 471 | N24: 156628 | O24: 291 | P24: 584 | Q24: 1501 | R24: 3208 | S24: 0 | T24: 2823 | U24: 1528 | V24: 0 | W24: 2147 | X24: 5285 | Y24: 723 | Z24: 4501 | AA24: 11808 | AB24: 3452 | AC24: 31880 | AD24: 46998 | AE24: 0 | AF24: 1029 | AG24: 1354 | AH24: 4275 | AI24: 6171 | AJ24: 2565 | AK24: 1338 | AL24: 2562 | AM24: 1003 | AN24: 3130 | AO24: 10549 | AP24: 4931 | AQ24: 329158
A25: 19 | B25: 38.34 | C25: 7785 | D25: 0 | E25: 591 | F25: 1654 | G25: 285 | H25: 540 | I25: 292 | J25: 837 | K25: 353 | L25: 1635 | M25: 373 | N25: 146645 | O25: 285 | P25: 363 | Q25: 1123 | R25: 2671 | S25: 0 | T25: 2625 | U25: 967 | V25: 0 | W25: 1623 | X25: 4858 | Y25: 569 | Z25: 3945 | AA25: 9579 | AB25: 3049 | AC25: 35129 | AD25: 35215 | AE25: 0 | AF25: 772 | AG25: 1027 | AH25: 4046 | AI25: 5077 | AJ25: 1818 | AK25: 1093 | AL25: 2098 | AM25: 850 | AN25: 2721 | AO25: 12121 | AP25: 1799 | AQ25: 296413
A26: 20 | B26: 38.34 | C26: 9232 | D26: 0 | E26: 650 | F26: 1807 | G26: 364 | H26: 694 | I26: 358 | J26: 933 | K26: 401 | L26: 1403 | M26: 381 | N26: 155790 | O26: 201 | P26: 432 | Q26: 1366 | R26: 3032 | S26: 0 | T26: 2945 | U26: 826 | V26: 0 | W26: 1855 | X26: 5214 | Y26: 588 | Z26: 4191 | AA26: 9658 | AB26: 2474 | AC26: 37992 | AD26: 33581 | AE26: 0 | AF26: 894 | AG26: 1180 | AH26: 2059 | AI26: 5690 | AJ26: 2309 | AK26: 1204 | AL26: 2581 | AM26: 943 | AN26: 2845 | AO26: 11600 | AP26: 1316 | AQ26: 308989
A27: 21 | B27: 38.43 | C27: 9507 | D27: 0 | E27: 987 | F27: 2028 | G27: 345 | H27: 564 | I27: 367 | J27: 903 | K27: 414 | L27: 1461 | M27: 374 | N27: 161926 | O27: 447 | P27: 478 | Q27: 1420 | R27: 3412 | S27: 0 | T27: 2615 | U27: 1781 | V27: 0 | W27: 2365 | X27: 5045 | Y27: 703 | Z27: 4570 | AA27: 11985 | AB27: 3925 | AC27: 36252 | AD27: 42526 | AE27: 0 | AF27: 890 | AG27: 1126 | AH27: 3098 | AI27: 5565 | AJ27: 1732 | AK27: 1580 | AL27: 2201 | AM27: 1056 | AN27: 3450 | AO27: 13521 | AP27: 7242 | AQ27: 337861
A28: 22 | B28: 38.43 | C28: 9937 | D28: 0 | E28: 743 | F28: 1903 | G28: 341 | H28: 645 | I28: 384 | J28: 989 | K28: 417 | L28: 1548 | M28: 391 | N28: 166110 | O28: 524 | P28: 481 | Q28: 1506 | R28: 2935 | S28: 0 | T28: 2839 | U28: 1560 | V28: 0 | W28: 2357 | X28: 3812 | Y28: 610 | Z28: 4679 | AA28: 11248 | AB28: 3982 | AC28: 33497 | AD28: 42656 | AE28: 0 | AF28: 975 | AG28: 1214 | AH28: 4229 | AI28: 6300 | AJ28: 1509 | AK28: 1468 | AL28: 2739 | AM28: 1029 | AN28: 4152 | AO28: 12821 | AP28: 5009 | AQ28: 337539
A29: 23 | B29: 38.43 | C29: 9957 | D29: 0 | E29: 885 | F29: 2236 | G29: 416 | H29: 685 | I29: 446 | J29: 1054 | K29: 456 | L29: 1663 | M29: 434 | N29: 161036 | O29: 612 | P29: 537 | Q29: 1490 | R29: 3109 | S29: 0 | T29: 3004 | U29: 1166 | V29: 0 | W29: 2421 | X29: 5064 | Y29: 685 | Z29: 4591 | AA29: 12328 | AB29: 3839 | AC29: 28104 | AD29: 46642 | AE29: 0 | AF29: 1008 | AG29: 1249 | AH29: 5086 | AI29: 5948 | AJ29: 1596 | AK29: 1717 | AL29: 2660 | AM29: 1060 | AN29: 4020 | AO29: 13533 | AP29: 5732 | AQ29: 336469
A30: 24 | B30: 38.43 | C30: 9411 | D30: 0 | E30: 637 | F30: 2057 | G30: 428 | H30: 698 | I30: 435 | J30: 1095 | K30: 488 | L30: 1720 | M30: 494 | N30: 171571 | O30: 310 | P30: 544 | Q30: 1659 | R30: 3569 | S30: 0 | T30: 3158 | U30: 1342 | V30: 0 | W30: 2608 | X30: 5478 | Y30: 762 | Z30: 4954 | AA30: 12265 | AB30: 3850 | AC30: 29227 | AD30: 45724 | AE30: 0 | AF30: 1116 | AG30: 1282 | AH30: 4316 | AI30: 6325 | AJ30: 2359 | AK30: 1534 | AL30: 3081 | AM30: 1154 | AN30: 3893 | AO30: 12906 | AP30: 1028 | AQ30: 343478
A31: 25 | B31: 38.43 | C31: 8532 | D31: 0 | E31: 586 | F31: 2026 | G31: 361 | H31: 696 | I31: 419 | J31: 1045 | K31: 419 | L31: 1628 | M31: 457 | N31: 161508 | O31: 147 | P31: 545 | Q31: 1543 | R31: 3283 | S31: 0 | T31: 3020 | U31: 1496 | V31: 0 | W31: 2336 | X31: 4978 | Y31: 716 | Z31: 4654 | AA31: 11340 | AB31: 3336 | AC31: 27915 | AD31: 44834 | AE31: 0 | AF31: 1027 | AG31: 1266 | AH31: 3781 | AI31: 7852 | AJ31: 1905 | AK31: 1295 | AL31: 2683 | AM31: 1018 | AN31: 3700 | AO31: 12935 | AP31: 3743 | AQ31: 329025
A32: 26 | B32: 38.43 | C32: 8753 | D32: 0 | E32: 473 | F32: 2019 | G32: 368 | H32: 705 | I32: 416 | J32: 1062 | K32: 467 | L32: 1658 | M32: 456 | N32: 152981 | O32: 272 | P32: 537 | Q32: 1491 | R32: 3230 | S32: 0 | T32: 2945 | U32: 1077 | V32: 0 | W32: 2445 | X32: 5319 | Y32: 725 | Z32: 4862 | AA32: 11370 | AB32: 3344 | AC32: 27547 | AD32: 62711 | AE32: 0 | AF32: 954 | AG32: 1293 | AH32: 3736 | AI32: 10761 | AJ32: 1742 | AK32: 1308 | AL32: 2617 | AM32: 1016 | AN32: 3704 | AO32: 12457 | AP32: 1900 | AQ32: 338721
A33: 27 | B33: 38.43 | C33: 8919 | D33: 0 | E33: 591 | F33: 2056 | G33: 415 | H33: 658 | I33: 381 | J33: 1045 | K33: 403 | L33: 1536 | M33: 431 | N33: 159029 | O33: 163 | P33: 530 | Q33: 1534 | R33: 3303 | S33: 0 | T33: 2841 | U33: 748 | V33: 0 | W33: 2342 | X33: 4708 | Y33: 640 | Z33: 4326 | AA33: 10199 | AB33: 2270 | AC33: 27232 | AD33: 66351 | AE33: 0 | AF33: 1053 | AG33: 1237 | AH33: 2189 | AI33: 7497 | AJ33: 1606 | AK33: 1255 | AL33: 2636 | AM33: 1023 | AN33: 3234 | AO33: 12562 | AP33: 1386 | AQ33: 338329
A34: 28 | B34: 38.3 | C34: 9777 | D34: 0 | E34: 904 | F34: 1803 | G34: 345 | H34: 621 | I34: 370 | J34: 917 | K34: 407 | L34: 1488 | M34: 403 | N34: 177643 | O34: 239 | P34: 431 | Q34: 1568 | R34: 2777 | S34: 0 | T34: 2959 | U34: 1229 | V34: 0 | W34: 2411 | X34: 5259 | Y34: 564 | Z34: 4090 | AA34: 10559 | AB34: 3797 | AC34: 25275 | AD34: 46782 | AE34: 0 | AF34: 950 | AG34: 1079 | AH34: 3572 | AI34: 5685 | AJ34: 1784 | AK34: 1567 | AL34: 1986 | AM34: 892 | AN34: 3632 | AO34: 9950 | AP34: 6818 | AQ34: 340533
A35: 29 | B35: 38.3 | C35: 9994 | D35: 0 | E35: 1029 | F35: 1951 | G35: 347 | H35: 673 | I35: 401 | J35: 1002 | K35: 426 | L35: 1416 | M35: 405 | N35: 183612 | O35: 344 | P35: 493 | Q35: 1585 | R35: 3112 | S35: 0 | T35: 2952 | U35: 1909 | V35: 0 | W35: 2309 | X35: 4983 | Y35: 656 | Z35: 6087 | AA35: 11080 | AB35: 4135 | AC35: 24234 | AD35: 45336 | AE35: 0 | AF35: 1005 | AG35: 1163 | AH35: 4466 | AI35: 5946 | AJ35: 1857 | AK35: 1325 | AL35: 2552 | AM35: 971 | AN35: 4588 | AO35: 12236 | AP35: 5809 | AQ35: 352389
A36: 30 | B36: 38.3 | C36: 9040 | D36: 0 | E36: 821 | F36: 1970 | G36: 358 | H36: 710 | I36: 404 | J36: 986 | K36: 401 | L36: 1489 | M36: 426 | N36: 187445 | O36: 333 | P36: 478 | Q36: 1570 | R36: 4208 | S36: 0 | T36: 3100 | U36: 1333 | V36: 0 | W36: 2324 | X36: 5066 | Y36: 683 | Z36: 4965 | AA36: 12191 | AB36: 3634 | AC36: 27205 | AD36: 51078 | AE36: 0 | AF36: 993 | AG36: 1213 | AH36: 4096 | AI36: 6278 | AJ36: 1855 | AK36: 1679 | AL36: 2778 | AM36: 990 | AN36: 4277 | AO36: 12060 | AP36: 5061 | AQ36: 363498
A37: 31 | B37: 38.3 | C37: 9417 | D37: 0 | E37: 775 | F37: 1987 | G37: 365 | H37: 702 | I37: 420 | J37: 1022 | K37: 450 | L37: 1417 | M37: 441 | N37: 212919 | O37: 583 | P37: 512 | Q37: 1629 | R37: 3303 | S37: 0 | T37: 2984 | U37: 715 | V37: 0 | W37: 2455 | X37: 5217 | Y37: 669 | Z37: 5920 | AA37: 12288 | AB37: 3396 | AC37: 29375 | AD37: 34789 | AE37: 0 | AF37: 1014 | AG37: 1191 | AH37: 5151 | AI37: 6162 | AJ37: 1469 | AK37: 1684 | AL37: 2691 | AM37: 1026 | AN37: 4227 | AO37: 2691 | AP37: 5170 | AQ37: 366226
A38: Загальний обсяг газу, м3 | C38: =SUM(C7:C37) -> 285970 | D38: =SUM(D7:D37) -> 0 | E38: =SUM(E7:E37) -> 21639 | F38: =SUM(F7:F37) -> 58514 | G38: 10512 | H38: =SUM(H7:H37) -> 19683 | I38: 11743 | J38: =SUM(J7:J37) -> 29572 | K38: 12515 | L38: 45786 | M38: 12524 | N38: 4884765 | O38: 11297 | P38: 14259 | Q38: 51485 | R38: 95624 | S38: 0 | T38: 87206 | U38: 39248 | V38: 0 | W38: 74167 | X38: 153407 | Y38: 19724 | Z38: 142807 | AA38: 343370 | AB38: 91308 | AC38: 956189 | AD38: 1099360 | AE38: 0 | AF38: 28215 | AG38: 35673 | AH38: 114673 | AI38: 188461 | AJ38: 61142 | AK38: 72981 | AL38: 84114 | AM38: 30558 | AN38: 117600 | AO38: 383227 | AP38: 118268 | AQ38: =SUM(AQ7:AQ37) -> 9807586
A39: Енергія, МДж | C39: =SUMPRODUCT($B7:$B37,C7:C37) -> 10972438.14 | D39: =SUMPRODUCT(A7:A37,D7:D37) -> 0 | E39: =SUMPRODUCT(B7:B37,E7:E37) -> 830234.24 | F39: =SUMPRODUCT(B7:B37,F7:F37) -> 2245208.67 | G39: =SUMPRODUCT(B7:B37,G7:G37) -> 403354.87 | H39: =SUMPRODUCT(B7:B37,H7:H37) -> 755223.98 | I39: =SUMPRODUCT(B7:B37,I7:I37) -> 450581.67 | J39: =SUMPRODUCT(B7:B37,J7:J37) -> 1134691.24 | K39: =SUMPRODUCT(B7:B37,K7:K37) -> 480206.55 | L39: =SUMPRODUCT(B7:B37,L7:L37) -> 1756847.31 | M39: =SUMPRODUCT(B7:B37,M7:M37) -> 480556.52 | N39: =SUMPRODUCT(B7:B37,N7:N37) -> 187418287.5 | O39: =SUMPRODUCT(B7:B37,O7:O37) -> 433442.03 | P39: =SUMPRODUCT($B7:$B37,P7:P37) -> 547137.36 | Q39: =SUMPRODUCT($B7:$B37,Q7:Q37) -> 1975397.62 | R39: 3669051.52 | S39: 0 | T39: 3346023.16 | U39: 1505949.18 | V39: 0 | W39: 2845436.57 | X39: 5886620.2 | Y39: 756823.93 | Z39: 5479054.39 | AA39: 13175144.49 | AB39: 3503453.12 | AC39: 36691249.61 | AD39: 42183281.16 | AE39: 0 | AF39: 1082625.27 | AG39: 1368789.43 | AH39: 4399615.64 | AI39: 7231751.6 | AJ39: 2345736.77 | AK39: 2800569.05 | AL39: 3227643.27 | AM39: 1172520.55 | AN39: 4512973.32 | AO39: 14705107.84 | AP39: 4537723.69 | AQ39: =SUMPRODUCT(B7:B37,AQ7:AQ37) -> 376310751.5
A40: Теплота згоряння (середньозважене значення за місяць), МДж/м³ | C40: =C39/C38 -> 38.37 | D40: =IF(D38=0,"0",D39/D38) -> 0 | E40: =E39/E38 -> 38.37 | F40: =F39/F38 -> 38.37 | G40: =G39/G38 -> 38.37 | H40: =H39/H38 -> 38.37 | I40: 38.37 | J40: 38.37 | K40: 38.37 | L40: 38.37 | M40: 38.37 | N40: 38.37 | O40: 38.37 | P40: 38.37 | Q40: 38.37 | R40: 38.37 | S40: =IF(S38=0,"0",S39/S38) -> 0 | T40: 38.37 | U40: 38.37 | V40: =IF(V38=0,"0",V39/V38) -> 0 | W40: 38.37 | X40: 38.37 | Y40: 38.37 | Z40: 38.37 | AA40: 38.37 | AB40: 38.37 | AC40: 38.37 | AD40: 38.37 | AE40: =IF(AE38=0,"0",AE39/AE38) -> 0 | AF40: 38.37 | AG40: 38.37 | AH40: 38.37 | AI40: 38.37 | AJ40: 38.37 | AK40: 38.37 | AL40: 38.37 | AM40: 38.37 | AN40: 38.38 | AO40: 38.37 | AP40: 38.37 | AQ40: =AQ39/AQ38 -> 38.37
A41: Теплота згоряння (середньозважене значення за місяць), ккал/м³ | C41: =C40*238.8459 -> 9165 | D41: =D40*238.8459 -> 0 | E41: =E40*238.8459 -> 9165 | F41: =F40*238.8459 -> 9165 | G41: 9165 | H41: 9165 | I41: 9165 | J41: 9165 | K41: 9165 | L41: 9165 | M41: 9165 | N41: 9165 | O41: 9165 | P41: 9165 | Q41: 9165 | R41: 9165 | S41: 0 | T41: 9165 | U41: 9165 | V41: 0 | W41: 9165 | X41: 9165 | Y41: 9165 | Z41: 9165 | AA41: 9165 | AB41: 9165 | AC41: 9165 | AD41: 9165 | AE41: 0 | AF41: 9165 | AG41: 9165 | AH41: 9165 | AI41: 9165 | AJ41: 9165 | AK41: 9165 | AL41: 9165 | AM41: 9165 | AN41: 9167 | AO41: 9165 | AP41: 9165 | AQ41: =AQ40*238.8459 -> 9165
A42: Теплота згоряння (середньозважене значення за місяць), кВт*год./м³ | C42: =C40/3.6 -> 10.66 | D42: 0 | E42: =E40/3.6 -> 10.66 | F42: =F40/3.6 -> 10.66 | G42: 10.66 | H42: 10.66 | I42: 10.66 | J42: 10.66 | K42: 10.66 | L42: 10.66 | M42: 10.66 | N42: 10.66 | O42: 10.66 | P42: 10.66 | Q42: 10.66 | R42: 10.66 | S42: 0 | T42: 10.66 | U42: 10.66 | V42: 0 | W42: 10.66 | X42: 10.66 | Y42: 10.66 | Z42: 10.66 | AA42: 10.66 | AB42: 10.66 | AC42: 10.66 | AD42: 10.66 | AE42: 0 | AF42: 10.66 | AG42: 10.66 | AH42: 10.66 | AI42: 10.66 | AJ42: 10.66 | AK42: 10.66 | AL42: 10.66 | AM42: 10.66 | AN42: 10.66 | AO42: 10.66 | AP42: 10.66 | AQ42: =AQ40/3.6 -> 10.66

Sheet додаток 11,8
A2: Додаток до Паспорту фізико-хімічних показників природного газу №11
A4: Область | B4: ГРС, прямий споживач | C4: Cередньозважене значення вищої теплоти згоряння
C5: МДж/м³ | D5: ккал/м³ | E5: кВт*год./м³
A6: Хмельницька область | B6: ГРС Красилів(місто) | C6: 38.37 | D6: 9165 | E6: 10.66
B7: ГРС Красилів (цукр. завод) | C7: 0 | D7: 0 | E7: 0
B8: АГНКС ПП АвтоГаз Красилів | C8: 38.37 | D8: 9165 | E8: 10.66
B9: ГРС Печеськи | C9: 38.37 | D9: 9165 | E9: 10.66
B10: ГРС Закриниччя | C10: 38.37 | D10: 9165 | E10: 10.66
B11: ГРС Чепелівка | C11: 38.37 | D11: 9165 | E11: 10.66
B12: ГРС Чернелівка | C12: 38.37 | D12: 9165 | E12: 10.66
B13: ГРС Заслучне | C13: 38.37 | D13: 9165 | E13: 10.66
B14: ГРС Яворівці | C14: 38.37 | D14: 9165 | E14: 10.66
B15: ГРС Пашутенці | C15: 38.37 | D15: 9165 | E15: 10.66
B16: ГРС Митенці | C16: 38.37 | D16: 9165 | E16: 10.66
B17: ГРС Хмельницький-1(Лісові Гринівці) | C17: 38.37 | D17: 9165 | E17: 10.66
B18: АГНКС-1 Хмельницький | C18: 38.37 | D18: 9165 | E18: 10.66
B19: ГРС Везденьки | C19: 38.37 | D19: 9165 | E19: 10.66
B20: ГРС Черепова | C20: 38.37 | D20: 9165 | E20: 10.66
B21: ГРС Грузевиця | C21: 38.37 | D21: 9165 | E21: 10.66
B22: ГРС Хмельницький-2(Шаровечка) | C22: 0 | D22: 0 | E22: 0
B23: ГРС Малиничі | C23: 38.37 | D23: 9165 | E23: 10.66
B24: АГНКС ТОВ ТД "Сан Ойл" | C24: 38.37 | D24: 9165 | E24: 10.66
B25: ГРС Хмельницький-3(Нижні Вовківці) | C25: 0 | D25: 0 | E25: 0
B26: ГРС Скарженці | C26: 38.37 | D26: 9165 | E26: 10.66
B27: ГРС Сутківці | C27: 38.37 | D27: 9165 | E27: 10.66
B28: ГРС Глушківці | C28: 38.37 | D28: 9165 | E28: 10.66
B29: ГРС Мицівці | C29: 38.37 | D29: 9165 | E29: 10.66
B30: ГРС Дунаївці | C30: 38.37 | D30: 9165 | E30: 10.66
B31: ГРС Маків | C31: 38.37 | D31: 9165 | E31: 10.66
B32: ГРС Кам'янець-Подільський-1(місто) | C32: 38.37 | D32: 9165 | E32: 10.66
B33: ГРС Кам'янець-Подільський-1(цем.з-д) | C33: 38.37 | D33: 9165 | E33: 10.66
B34: ГРС Кам'янець-Подільський-2(ТЕЦ) | C34: 0 | D34: 0 | E34: 0
B35: ГРС Шмирки | C35: 38.37 | D35: 9165 | E35: 10.66
B36: ГРС Купіль | C36: 38.37 | D36: 9165 | E36: 10.66
B37: ГРС Базалія | C37: 38.37 | D37: 9165 | E37: 10.66
B38: ГРС Теофіполь | C38: 38.37 | D38: 9165 | E38: 10.66
B39: ГРС Заруддя | C39: 38.37 | D39: 9165 | E39: 10.66
B40: ГРС Ямпіль | C40: 38.37 | D40: 9165 | E40: 10.66
B41: ГРС Білогір'я | C41: 38.37 | D41: 9165 | E41: 10.66
B42: ГРС Денисівка | C42: 38.37 | D42: 9165 | E42: 10.66
B43: ГРС Гарнишівка | C43: 38.38 | D43: 9167 | E43: 10.66
B44: ГРС Волочиськ | C44: 38.37 | D44: 9165 | E44: 10.66
B45: "Мотор Січ" | C45: 38.37 | D45: 9165 | E45: 10.66
A46: Середньозважене значення вищої теплоти згоряння по маршруту № 11 | C46: 38.37 | D46: 9165 | E46: 10.66
A50: В.о.начальника управління Красилівського ЛВУМГ Семенюк П.В.
A51: Підрозділу підприємства, якому підпорядкована лабораторія | D51: прізвище | E51: підпис | F51: дата
A52: Завідувач лабораторією Пілецька С.А.
A53: Лабораторія, де здійснювалось вимірювання газу | D53: прізвище | E53: підпис | F53: дата
A54: Начальник служби метрології Мягкий С.В.
A55: Підрозділу, відповідального за облік газу за маршрутом | D55: прізвище | E55: підпис | F55: дата

Sheet variablesList (hidden)
A1: 3 | B1: x:\gaysin | C1: 10, 11, 24, 25, 127, 128, 132, 180, 207, 215 | D1: x:\
B2: x:\Illinci
B3: x:\Talne
